[Event "*** Titled Tuesday Blitz"]
[Site "Chess.com"]
[Date "2020.04.14"]
[Round "5"]
[White "SketchyMoves"]
[Black "Guachiney"]
[Result "0-1"]
[WhiteElo "2649"]
[BlackElo "2837"]
[TimeControl "180+1"]
[EndTime "10:50:34 PDT"]
[Termination "Guachiney won by checkmate"]

1. e4 {[%clk 0:03:00.9]} 1... c5 {[%clk 0:02:59]} 2. Nc3 {[%clk 0:03:00.7]} 2...
Nc6 {[%clk 0:02:58.3]} 3. Bb5 {[%clk 0:03:00.4]} 3... Nd4 {[%clk 0:02:57.5]} 4.
Nf3 {[%clk 0:03:00.8]} 4... a6 {[%clk 0:02:57]} 5. Bd3 {[%clk 0:02:59.9]} 5...
Nc6 {[%clk 0:02:57.6]} 6. Be2 {[%clk 0:02:59.9]} 6... g6 {[%clk 0:02:56.9]} 7.
d4 {[%clk 0:02:59.5]} 7... cxd4 {[%clk 0:02:56.6]} 8. Nxd4 {[%clk 0:03:00.4]}
8... Bg7 {[%clk 0:02:55.9]} 9. Be3 {[%clk 0:03:00.9]} 9... Nf6 {[%clk
0:02:55.1]} 10. f3 {[%clk 0:02:57.4]} 10... d5 {[%clk 0:02:49.5]} 11. exd5
{[%clk 0:02:50.3]} 11... Nxd5 {[%clk 0:02:43.9]} 12. Nxc6 {[%clk 0:02:50.4]}
12... bxc6 {[%clk 0:02:42.7]} 13. Nxd5 {[%clk 0:02:44.9]} 13... cxd5 {[%clk
0:02:42.3]} 14. Bd4 {[%clk 0:02:44.6]} 14... Qa5+ {[%clk 0:02:21.9]} 15. c3
{[%clk 0:02:36.7]} 15... e5 {[%clk 0:02:21.4]} 16. b4 {[%clk 0:02:36.1]} 16...
Qa3 {[%clk 0:02:21.5]} 17. Bc5 {[%clk 0:02:23.7]} 17... Qxc3+ {[%clk 0:02:20.1]}
18. Kf1 {[%clk 0:02:24.3]} 18... d4 {[%clk 0:01:57]} 19. Rc1 {[%clk 0:02:04.9]}
19... Qa3 {[%clk 0:01:56.4]} 20. b5 {[%clk 0:02:02.4]} 20... Qa5 {[%clk
0:01:51]} 21. b6 {[%clk 0:01:30.3]} 21... Bb7 {[%clk 0:01:47.9]} 22. Qb3 {[%clk
0:01:22.5]} 22... Rc8 {[%clk 0:01:36.8]} 23. Ba3 {[%clk 0:00:46.9]} 23... Rxc1+
{[%clk 0:01:35.8]} 24. Bxc1 {[%clk 0:00:47.8]} 24... O-O {[%clk 0:01:36.2]} 25.
Kf2 {[%clk 0:00:48.2]} 25... e4 {[%clk 0:01:35.4]} 26. fxe4 {[%clk 0:00:44.7]}
26... Bxe4 {[%clk 0:01:36.3]} 27. Bf4 {[%clk 0:00:32.4]} 27... Qf5 {[%clk
0:01:30.2]} 28. Kg3 {[%clk 0:00:18.9]} 28... g5 {[%clk 0:01:23]} 29. Bd6 {[%clk
0:00:18.7]} 29... Be5+ {[%clk 0:01:22.5]} 30. Bxe5 {[%clk 0:00:18.9]} 30...
Qxe5+ {[%clk 0:01:23.4]} 31. Kf2 {[%clk 0:00:18.9]} 31... d3 {[%clk 0:01:21.3]}
32. Bxd3 {[%clk 0:00:13.4]} 32... Qd4+ {[%clk 0:01:13.7]} 33. Ke2 {[%clk
0:00:13.6]} 33... Bxd3+ {[%clk 0:01:05.4]} 34. Qxd3 {[%clk 0:00:14.5]} 34...
Re8+ {[%clk 0:01:05.8]} 35. Kd2 {[%clk 0:00:14.6]} 35... Qb2+ {[%clk 0:01:05.5]}
36. Kd1 {[%clk 0:00:14.5]} 36... Qa1+ {[%clk 0:01:05.2]} 37. Kc2 {[%clk
0:00:13.9]} 37... Qxh1 {[%clk 0:01:03]} 38. Qd5 {[%clk 0:00:13.8]} 38... h6
{[%clk 0:00:58.4]} 39. Qc6 {[%clk 0:00:09.3]} 39... Qe1 {[%clk 0:00:55]} 40. b7
{[%clk 0:00:08.2]} 40... Re2+ {[%clk 0:00:45.4]} 41. Kb3 {[%clk 0:00:08.5]}
41... Qb1+ {[%clk 0:00:45]} 42. Ka3 {[%clk 0:00:07.1]} 42... Rxa2# {[%clk
0:00:44.4]} 0-1

[Event "*** Titled Tuesday Blitz"]
[Site "Chess.com"]
[Date "2020.04.14"]
[Round "5"]
[White "GeorgMeier"]
[Black "Sven_Tica"]
[Result "1-0"]
[WhiteElo "3046"]
[BlackElo "2667"]
[TimeControl "180+1"]
[EndTime "10:50:35 PDT"]
[Termination "GeorgMeier won by resignation"]

1. Nf3 {[%clk 0:03:00.9]} 1... d5 {[%clk 0:03:00]} 2. g3 {[%clk 0:03:01.2]} 2...
e6 {[%clk 0:02:59.9]} 3. Bg2 {[%clk 0:03:01.5]} 3... Nf6 {[%clk 0:03:00.7]} 4.
O-O {[%clk 0:03:01.7]} 4... Be7 {[%clk 0:03:01.6]} 5. c4 {[%clk 0:03:01.4]} 5...
O-O {[%clk 0:03:02.2]} 6. d4 {[%clk 0:03:01.9]} 6... c6 {[%clk 0:03:01.9]} 7.
Qc2 {[%clk 0:03:02.3]} 7... b6 {[%clk 0:03:02.1]} 8. Nbd2 {[%clk 0:03:01.5]}
8... Bb7 {[%clk 0:02:58.7]} 9. e4 {[%clk 0:03:00.7]} 9... Na6 {[%clk 0:02:56.8]}
10. a3 {[%clk 0:03:00]} 10... c5 {[%clk 0:02:51.9]} 11. exd5 {[%clk 0:02:55.8]}
11... exd5 {[%clk 0:02:52.8]} 12. dxc5 {[%clk 0:02:55.9]} 12... Nxc5 {[%clk
0:02:53.5]} 13. b4 {[%clk 0:02:56.4]} 13... Ne6 {[%clk 0:02:49.4]} 14. Bb2
{[%clk 0:02:56.8]} 14... Rc8 {[%clk 0:02:49.5]} 15. Rfd1 {[%clk 0:02:53]} 15...
a5 {[%clk 0:02:35.2]} 16. b5 {[%clk 0:02:46.5]} 16... Qc7 {[%clk 0:02:30.9]} 17.
Be5 {[%clk 0:02:34.6]} 17... Qc5 {[%clk 0:02:24.2]} 18. Ne1 {[%clk 0:02:31.8]}
18... Ng4 {[%clk 0:01:58.9]} 19. Nd3 {[%clk 0:02:29.4]} 19... Qxb5 {[%clk
0:01:57.3]} 20. Rab1 {[%clk 0:02:24.7]} 20... Qa6 {[%clk 0:01:52.7]} 21. Ba1
{[%clk 0:02:11.2]} 21... dxc4 {[%clk 0:01:47.9]} 22. Ne1 {[%clk 0:01:53.1]}
22... Bxg2 {[%clk 0:01:40.7]} 23. Nxg2 {[%clk 0:01:54]} 23... b5 {[%clk
0:01:33.8]} 24. Qf5 {[%clk 0:01:53.1]} 24... Nf6 {[%clk 0:01:32.7]} 25. Qxb5
{[%clk 0:01:43.3]} 25... Qxb5 {[%clk 0:01:30.1]} 26. Rxb5 {[%clk 0:01:44.2]}
26... c3 {[%clk 0:01:29.5]} 27. Nb3 {[%clk 0:01:41.2]} 27... c2 {[%clk
0:01:28.6]} 28. Re1 {[%clk 0:01:36.6]} 28... Bxa3 {[%clk 0:01:25]} 29. Nc1
{[%clk 0:01:30.1]} 29... Rfd8 {[%clk 0:01:18.7]} 30. Ne3 {[%clk 0:01:28.4]}
30... Bb4 {[%clk 0:01:13.8]} 31. Rf1 {[%clk 0:01:27.4]} 31... Ne4 {[%clk
0:01:11.2]} 32. Kg2 {[%clk 0:01:22.7]} 32... Nd2 {[%clk 0:01:07.1]} 33. Rh1
{[%clk 0:01:18.9]} 33... h6 {[%clk 0:00:57]} 34. Ne2 {[%clk 0:01:16.6]} 34...
Nb3 {[%clk 0:00:53.5]} 35. Bb2 {[%clk 0:01:11.1]} 35... Nbd4 {[%clk 0:00:49.8]}
36. Nxd4 {[%clk 0:00:52.7]} 36... Nxd4 {[%clk 0:00:50.7]} 37. Rb7 {[%clk
0:00:52.6]} 37... Ne2 {[%clk 0:00:46.9]} 38. Bc1 {[%clk 0:00:50.5]} 1-0

[Event "*** Titled Tuesday Blitz"]
[Site "Chess.com"]
[Date "2020.04.14"]
[Round "5"]
[White "bait_or_mate"]
[Black "KarpovVadim"]
[Result "0-1"]
[WhiteElo "2567"]
[BlackElo "2406"]
[TimeControl "180+1"]
[EndTime "10:50:35 PDT"]
[Termination "KarpovVadim won by resignation"]

1. d4 {[%clk 0:03:00.9]} 1... Nf6 {[%clk 0:02:57.5]} 2. c4 {[%clk 0:03:00.7]}
2... e6 {[%clk 0:02:57.4]} 3. Nf3 {[%clk 0:02:59.4]} 3... d5 {[%clk 0:02:57.2]}
4. g3 {[%clk 0:02:57.9]} 4... Be7 {[%clk 0:02:57.2]} 5. Bg2 {[%clk 0:02:53.3]}
5... O-O {[%clk 0:02:57.1]} 6. O-O {[%clk 0:02:52.3]} 6... dxc4 {[%clk
0:02:56.7]} 7. Ne5 {[%clk 0:02:52.1]} 7... c5 {[%clk 0:02:55]} 8. dxc5 {[%clk
0:02:50.1]} 8... Qc7 {[%clk 0:02:55]} 9. Nxc4 {[%clk 0:02:49]} 9... Qxc5 {[%clk
0:02:54.9]} 10. b3 {[%clk 0:02:39.2]} 10... Qc7 {[%clk 0:02:54.2]} 11. Bf4
{[%clk 0:02:35]} 11... Qd8 {[%clk 0:02:44.2]} 12. Qc2 {[%clk 0:02:32.1]} 12...
Nc6 {[%clk 0:02:33.1]} 13. Rd1 {[%clk 0:02:28.1]} 13... Bd7 {[%clk 0:02:32.1]}
14. Nc3 {[%clk 0:02:16.9]} 14... Rc8 {[%clk 0:02:29.2]} 15. Qb2 {[%clk
0:02:11.9]} 15... Nh5 {[%clk 0:02:08.5]} 16. Be3 {[%clk 0:01:49.7]} 16... Nf6
{[%clk 0:02:03.3]} 17. Nb5 {[%clk 0:01:47.2]} 17... Nd5 {[%clk 0:01:53.1]} 18.
Bxd5 {[%clk 0:01:44.2]} 18... exd5 {[%clk 0:01:52.1]} 19. Rxd5 {[%clk
0:01:45.1]} 19... Bf6 {[%clk 0:01:52.2]} 20. Qd2 {[%clk 0:01:16.3]} 20... Bxa1
{[%clk 0:01:48.5]} 21. Rxd7 {[%clk 0:01:16.4]} 21... Qf6 {[%clk 0:01:47.3]} 22.
Bg5 {[%clk 0:01:05.2]} 22... Qg6 {[%clk 0:01:34.5]} 23. Rxb7 {[%clk 0:00:52.8]}
23... h6 {[%clk 0:01:30.7]} 24. Bf4 {[%clk 0:00:49.9]} 24... Rcd8 {[%clk
0:01:25.8]} 25. Nbd6 {[%clk 0:00:48.3]} 25... Nd4 {[%clk 0:01:17]} 26. Qe3
{[%clk 0:00:41]} 26... Ne6 {[%clk 0:01:04.4]} 27. Rxa7 {[%clk 0:00:32.9]} 27...
Bd4 {[%clk 0:01:02.1]} 28. Qf3 {[%clk 0:00:20]} 28... Bxa7 {[%clk 0:00:59.2]}
29. Be5 {[%clk 0:00:19.4]} 29... Ng5 {[%clk 0:00:54.8]} 30. Qc6 {[%clk
0:00:11.9]} 30... Nh3+ {[%clk 0:00:49.1]} 31. Kg2 {[%clk 0:00:11.4]} 31... Nxf2
{[%clk 0:00:48.2]} 32. b4 {[%clk 0:00:05]} 32... Ng4 {[%clk 0:00:43.5]} 33. b5
{[%clk 0:00:04.6]} 33... Nxe5 {[%clk 0:00:41.7]} 34. Nxe5 {[%clk 0:00:04]} 34...
Qxd6 {[%clk 0:00:41.4]} 35. Qxd6 {[%clk 0:00:03.6]} 0-1

[Event "*** Titled Tuesday Blitz"]
[Site "Chess.com"]
[Date "2020.04.14"]
[Round "5"]
[White "Irishchessman16"]
[Black "MalcolmPein"]
[Result "1-0"]
[WhiteElo "2361"]
[BlackElo "2180"]
[TimeControl "180+1"]
[EndTime "10:50:35 PDT"]
[Termination "Irishchessman16 won by checkmate"]

1. d4 {[%clk 0:02:10.6]} 1... Nf6 {[%clk 0:02:58.5]} 2. Nf3 {[%clk 0:02:07.4]}
2... c5 {[%clk 0:02:56.2]} 3. d5 {[%clk 0:01:59.2]} 3... g6 {[%clk 0:02:53.3]}
4. Nc3 {[%clk 0:01:57.9]} 4... d6 {[%clk 0:02:52.8]} 5. e4 {[%clk 0:01:56]} 5...
Bg7 {[%clk 0:02:53.4]} 6. Bb5+ {[%clk 0:01:55.7]} 6... Bd7 {[%clk 0:02:51.4]} 7.
a4 {[%clk 0:01:55.3]} 7... O-O {[%clk 0:02:51.2]} 8. O-O {[%clk 0:01:52.6]} 8...
Na6 {[%clk 0:02:51.8]} 9. Nd2 {[%clk 0:01:47.4]} 9... Nc7 {[%clk 0:02:52.4]} 10.
Bd3 {[%clk 0:01:45.7]} 10... a6 {[%clk 0:02:44.6]} 11. a5 {[%clk 0:01:42.2]}
11... Nb5 {[%clk 0:02:43.3]} 12. Nc4 {[%clk 0:01:29.6]} 12... Nxc3 {[%clk
0:02:40.6]} 13. bxc3 {[%clk 0:01:30.5]} 13... Bb5 {[%clk 0:02:39.5]} 14. Nb6
{[%clk 0:01:28.3]} 14... Rb8 {[%clk 0:02:20.4]} 15. Rb1 {[%clk 0:01:24.1]} 15...
Qc7 {[%clk 0:01:56.2]} 16. Qe2 {[%clk 0:01:16.7]} 16... Bxd3 {[%clk 0:01:50.7]}
17. cxd3 {[%clk 0:01:13.7]} 17... Nd7 {[%clk 0:01:51.2]} 18. Bd2 {[%clk
0:01:09.7]} 18... e6 {[%clk 0:01:44.5]} 19. dxe6 {[%clk 0:01:00.9]} 19... fxe6
{[%clk 0:01:45.4]} 20. f4 {[%clk 0:00:52]} 20... Rbe8 {[%clk 0:01:42]} 21. Rb3
{[%clk 0:00:45.9]} 21... d5 {[%clk 0:01:41.6]} 22. Rfb1 {[%clk 0:00:36.9]} 22...
c4 {[%clk 0:01:22.2]} 23. dxc4 {[%clk 0:00:35.9]} 23... Nc5 {[%clk 0:01:21.8]}
24. cxd5 {[%clk 0:00:21.7]} 24... Nxb3 {[%clk 0:01:19.6]} 25. Rxb3 {[%clk
0:00:21.8]} 25... exd5 {[%clk 0:01:10]} 26. Nxd5 {[%clk 0:00:21.3]} 26... Qc5+
{[%clk 0:01:09.1]} 27. Be3 {[%clk 0:00:21.4]} 27... Qxa5 {[%clk 0:01:08.3]} 28.
Qc4 {[%clk 0:00:20.8]} 28... Kh8 {[%clk 0:01:01.5]} 29. Rxb7 {[%clk 0:00:19.8]}
29... Qa1+ {[%clk 0:00:47.7]} 30. Kf2 {[%clk 0:00:19.4]} 30... Rb8 {[%clk
0:00:36.2]} 31. Rxb8 {[%clk 0:00:18.5]} 31... Rxb8 {[%clk 0:00:35.3]} 32. Bd4
{[%clk 0:00:18.2]} 32... Rb2+ {[%clk 0:00:25.1]} 33. Kg3 {[%clk 0:00:18.5]}
33... Qe1+ {[%clk 0:00:23.9]} 34. Kh3 {[%clk 0:00:18.8]} 34... Qe2 {[%clk
0:00:16.8]} 35. Qc8# {[%clk 0:00:17.9]} 1-0

[Event "*** Titled Tuesday Blitz"]
[Site "Chess.com"]
[Date "2020.04.14"]
[Round "5"]
[White "Luibov_AN"]
[Black "esskeettit"]
[Result "1-0"]
[WhiteElo "2186"]
[BlackElo "2327"]
[TimeControl "180+1"]
[EndTime "10:50:38 PDT"]
[Termination "Luibov_AN won by checkmate"]

1. d4 {[%clk 0:03:00.9]} 1... Nf6 {[%clk 0:02:57.5]} 2. Nf3 {[%clk 0:03:00.8]}
2... e6 {[%clk 0:02:54.6]} 3. c4 {[%clk 0:02:59.7]} 3... d5 {[%clk 0:02:54.5]}
4. Nc3 {[%clk 0:02:59.6]} 4... Be7 {[%clk 0:02:54.4]} 5. e3 {[%clk 0:02:59.7]}
5... O-O {[%clk 0:02:53.5]} 6. cxd5 {[%clk 0:02:59.9]} 6... exd5 {[%clk
0:02:53.2]} 7. Bd3 {[%clk 0:02:59.7]} 7... c6 {[%clk 0:02:53.1]} 8. h3 {[%clk
0:02:59.8]} 8... Re8 {[%clk 0:02:51.8]} 9. O-O {[%clk 0:02:58.6]} 9... Nbd7
{[%clk 0:02:51.7]} 10. Ne5 {[%clk 0:02:58.2]} 10... Nf8 {[%clk 0:02:41.2]} 11.
f4 {[%clk 0:02:58.1]} 11... Ne6 {[%clk 0:02:08.2]} 12. a3 {[%clk 0:02:43.2]}
12... c5 {[%clk 0:01:59.9]} 13. Bc2 {[%clk 0:02:30.8]} 13... cxd4 {[%clk
0:01:58.9]} 14. exd4 {[%clk 0:02:30.6]} 14... Qb6 {[%clk 0:01:52.4]} 15. Ne2
{[%clk 0:02:11.5]} 15... Ne4 {[%clk 0:01:43.2]} 16. Kh2 {[%clk 0:01:59.5]} 16...
f6 {[%clk 0:01:36.2]} 17. Nf3 {[%clk 0:01:57.5]} 17... Bd6 {[%clk 0:01:34]} 18.
g3 {[%clk 0:01:47.2]} 18... Bd7 {[%clk 0:01:28.4]} 19. a4 {[%clk 0:01:39.3]}
19... Rac8 {[%clk 0:01:23.6]} 20. Qd3 {[%clk 0:01:36.5]} 20... Nf8 {[%clk
0:00:51.7]} 21. Bb3 {[%clk 0:01:28]} 21... Be6 {[%clk 0:00:41.2]} 22. f5 {[%clk
0:01:08.4]} 22... Bxf5 {[%clk 0:00:34.6]} 23. Bxd5+ {[%clk 0:01:05.6]} 23... Kh8
{[%clk 0:00:34.5]} 24. Qd1 {[%clk 0:00:54.9]} 24... Qc7 {[%clk 0:00:24.1]} 25.
Nf4 {[%clk 0:00:53.8]} 25... g5 {[%clk 0:00:17.2]} 26. Ne2 {[%clk 0:00:41.1]}
26... Nxg3 {[%clk 0:00:14.6]} 27. Nxg3 {[%clk 0:00:40.2]} 27... Bxg3+ {[%clk
0:00:14.5]} 28. Kg2 {[%clk 0:00:40.2]} 28... Bd6 {[%clk 0:00:12]} 29. Nxg5
{[%clk 0:00:36.8]} 29... fxg5 {[%clk 0:00:09.7]} 30. Rxf5 {[%clk 0:00:36.7]}
30... Ng6 {[%clk 0:00:09.9]} 31. Bxg5 {[%clk 0:00:32.5]} 31... Qc2+ {[%clk
0:00:05.7]} 32. Rf2 {[%clk 0:00:28.1]} 32... Qxd1 {[%clk 0:00:04.9]} 33. Bf6#
{[%clk 0:00:27.8]} 1-0

[Event "*** Titled Tuesday Blitz"]
[Site "Chess.com"]
[Date "2020.04.14"]
[Round "5"]
[White "Cuchulin"]
[Black "ChocolateRoses"]
[Result "1/2-1/2"]
[WhiteElo "2108"]
[BlackElo "2282"]
[TimeControl "180+1"]
[EndTime "10:50:39 PDT"]
[Termination "Game drawn by repetition"]

1. d4 {[%clk 0:02:57.4]} 1... d5 {[%clk 0:02:59.1]} 2. Bf4 {[%clk 0:02:58]} 2...
Nf6 {[%clk 0:02:58.3]} 3. e3 {[%clk 0:02:58.6]} 3... c5 {[%clk 0:02:58.2]} 4.
Nc3 {[%clk 0:02:57.1]} 4... a6 {[%clk 0:02:55.2]} 5. Nf3 {[%clk 0:02:56.2]} 5...
cxd4 {[%clk 0:02:53.4]} 6. exd4 {[%clk 0:02:55.7]} 6... Nc6 {[%clk 0:02:53.6]}
7. Bd3 {[%clk 0:02:54.8]} 7... Bg4 {[%clk 0:02:46]} 8. Be2 {[%clk 0:02:48.8]}
8... e6 {[%clk 0:02:44.5]} 9. O-O {[%clk 0:02:46.7]} 9... Bd6 {[%clk 0:02:32.7]}
10. Bxd6 {[%clk 0:02:46.4]} 10... Qxd6 {[%clk 0:02:33.6]} 11. h3 {[%clk
0:02:30.3]} 11... Bh5 {[%clk 0:02:28.9]} 12. Na4 {[%clk 0:02:24.8]} 12... O-O
{[%clk 0:02:22.8]} 13. c3 {[%clk 0:02:18.7]} 13... Ne4 {[%clk 0:02:01.2]} 14.
Ne5 {[%clk 0:02:07.6]} 14... Bxe2 {[%clk 0:01:59.4]} 15. Qxe2 {[%clk 0:02:07.4]}
15... b5 {[%clk 0:01:26.4]} 16. Nb6 {[%clk 0:01:54.6]} 16... Nxe5 {[%clk
0:01:22.6]} 17. Nxa8 {[%clk 0:01:54]} 17... Ng6 {[%clk 0:01:18.8]} 18. a4 {[%clk
0:01:50.7]} 18... bxa4 {[%clk 0:01:15.4]} 19. Rxa4 {[%clk 0:01:49]} 19... Rxa8
{[%clk 0:01:15.4]} 20. Rfa1 {[%clk 0:01:47.2]} 20... Qf4 {[%clk 0:00:54]} 21.
Rxa6 {[%clk 0:01:39.5]} 21... Rxa6 {[%clk 0:00:47.5]} 22. Rxa6 {[%clk
0:01:39.4]} 22... h5 {[%clk 0:00:38.6]} 23. Ra8+ {[%clk 0:01:28.3]} 23... Nf8
{[%clk 0:00:37.6]} 24. Ra1 {[%clk 0:01:08.1]} 24... h4 {[%clk 0:00:34.6]} 25.
Qc2 {[%clk 0:01:05.3]} 25... Ng6 {[%clk 0:00:33.3]} 26. b4 {[%clk 0:01:04.6]}
26... Qg5 {[%clk 0:00:30.6]} 27. f3 {[%clk 0:00:53.1]} 27... Qe3+ {[%clk
0:00:28.3]} 28. Kh2 {[%clk 0:00:48.2]} 28... Qf4+ {[%clk 0:00:27.5]} 29. Kg1
{[%clk 0:00:46.9]} 29... Qe3+ {[%clk 0:00:27]} 30. Kh1 {[%clk 0:00:45.4]} 30...
Ng3+ {[%clk 0:00:20.4]} 31. Kh2 {[%clk 0:00:44.8]} 31... Qf4 {[%clk 0:00:12.4]}
32. Kg1 {[%clk 0:00:41.6]} 32... Qe3+ {[%clk 0:00:10.3]} 33. Kh2 {[%clk
0:00:22.4]} 33... Qf4 {[%clk 0:00:10.5]} 34. Kg1 {[%clk 0:00:22.6]} 34... Qe3+
{[%clk 0:00:10.8]} 35. Kh2 {[%clk 0:00:23]} 1/2-1/2

[Event "*** Titled Tuesday Blitz"]
[Site "Chess.com"]
[Date "2020.04.14"]
[Round "5"]
[White "Embrujada"]
[Black "MikeSailer"]
[Result "1-0"]
[WhiteElo "2331"]
[BlackElo "2110"]
[TimeControl "180+1"]
[EndTime "10:50:41 PDT"]
[Termination "Embrujada won on time"]

1. d4 {[%clk 0:02:59.3]} 1... d5 {[%clk 0:02:59.4]} 2. c4 {[%clk 0:02:59.7]}
2... Bf5 {[%clk 0:02:58.8]} 3. Nc3 {[%clk 0:02:58.8]} 3... e6 {[%clk 0:02:58.8]}
4. Qb3 {[%clk 0:02:55.9]} 4... Nc6 {[%clk 0:02:58.1]} 5. e3 {[%clk 0:02:54.9]}
5... Nb4 {[%clk 0:02:55.7]} 6. e4 {[%clk 0:02:44.2]} 6... dxe4 {[%clk
0:02:54.7]} 7. Be3 {[%clk 0:02:42.8]} 7... Nf6 {[%clk 0:02:47.7]} 8. O-O-O
{[%clk 0:02:42.4]} 8... Qd7 {[%clk 0:02:36.5]} 9. a3 {[%clk 0:02:14.9]} 9... a5
{[%clk 0:02:26.5]} 10. axb4 {[%clk 0:02:11.3]} 10... axb4 {[%clk 0:02:26.5]} 11.
Nb1 {[%clk 0:02:11.3]} 11... Be7 {[%clk 0:02:19]} 12. Ne2 {[%clk 0:02:08.9]}
12... O-O {[%clk 0:02:18.7]} 13. Nf4 {[%clk 0:02:08.2]} 13... Ra1 {[%clk
0:02:14.4]} 14. Be2 {[%clk 0:02:07]} 14... Rfa8 {[%clk 0:02:13.4]} 15. h3 {[%clk
0:02:05]} 15... Qc6 {[%clk 0:01:45.4]} 16. g4 {[%clk 0:02:03.9]} 16... Bg6
{[%clk 0:01:42]} 17. Nxg6 {[%clk 0:02:03.9]} 17... hxg6 {[%clk 0:01:40.2]} 18.
Kd2 {[%clk 0:02:00.9]} 18... R1a2 {[%clk 0:01:23.4]} 19. Rc1 {[%clk 0:01:59.9]}
19... Nd7 {[%clk 0:01:10.4]} 20. c5 {[%clk 0:01:54.6]} 20... Nf6 {[%clk
0:01:05.5]} 21. Bc4 {[%clk 0:01:50.1]} 21... Nd5 {[%clk 0:00:50.9]} 22. Bxd5
{[%clk 0:01:50]} 22... exd5 {[%clk 0:00:51.3]} 23. Qxb4 {[%clk 0:01:49.2]} 23...
R8a4 {[%clk 0:00:45.2]} 24. Qb3 {[%clk 0:01:48.3]} 24... Bf6 {[%clk 0:00:42.3]}
25. Nc3 {[%clk 0:01:47.8]} 25... R4a3 {[%clk 0:00:35.2]} 26. Qxa3 {[%clk
0:01:33.9]} 26... Rxa3 {[%clk 0:00:35.4]} 27. bxa3 {[%clk 0:01:34.5]} 27... Qa6
{[%clk 0:00:35.9]} 28. Rc2 {[%clk 0:01:27.8]} 28... Qd3+ {[%clk 0:00:29.2]} 29.
Kc1 {[%clk 0:01:27.3]} 29... Bxd4 {[%clk 0:00:25.5]} 30. Bxd4 {[%clk 0:01:24.4]}
30... Qxd4 {[%clk 0:00:25.4]} 31. Rd1 {[%clk 0:01:25]} 31... Qxc5 {[%clk
0:00:22.7]} 32. Rxd5 {[%clk 0:01:23.5]} 32... Qxa3+ {[%clk 0:00:22.7]} 33. Kd2
{[%clk 0:01:24]} 33... c6 {[%clk 0:00:18.2]} 34. Rd8+ {[%clk 0:01:22.8]} 34...
Kh7 {[%clk 0:00:18.4]} 35. Rd7 {[%clk 0:01:22]} 35... Qc5 {[%clk 0:00:13]} 36.
Nxe4 {[%clk 0:01:20.1]} 36... Qb4+ {[%clk 0:00:09.1]} 37. Ke3 {[%clk 0:01:18]}
37... Qb3+ {[%clk 0:00:06.8]} 38. Rc3 {[%clk 0:01:18.5]} 38... Qe6 {[%clk
0:00:05]} 39. Rd6 {[%clk 0:01:13.9]} 39... Qe5 {[%clk 0:00:03.8]} 40. Rc5 {[%clk
0:01:13.8]} 40... Qh2 {[%clk 0:00:02]} 41. Ng5+ {[%clk 0:01:12]} 41... Kh6
{[%clk 0:00:01.8]} 42. Nxf7+ {[%clk 0:01:12.4]} 42... Kh7 {[%clk 0:00:02.6]} 43.
Ng5+ {[%clk 0:01:12.9]} 43... Kh6 {[%clk 0:00:03.1]} 44. Re6 {[%clk 0:01:08.1]}
44... Qg1 {[%clk 0:00:02.5]} 45. Rce5 {[%clk 0:01:00.2]} 45... Qe1+ {[%clk
0:00:02.4]} 46. Kf3 {[%clk 0:01:00.1]} 46... Qd1+ {[%clk 0:00:02.8]} 47. Kg2
{[%clk 0:01:00.2]} 47... Qd4 {[%clk 0:00:02.6]} 48. Re8 {[%clk 0:00:59]} 1-0

[Event "*** Titled Tuesday Blitz"]
[Site "Chess.com"]
[Date "2020.04.14"]
[Round "5"]
[White "eightbyeightchess"]
[Black "Gabrielian_Artur"]
[Result "1-0"]
[WhiteElo "2422"]
[BlackElo "2671"]
[TimeControl "180+1"]
[EndTime "10:50:45 PDT"]
[Termination "eightbyeightchess won by resignation"]

1. e4 {[%clk 0:02:57.7]} 1... c5 {[%clk 0:02:59.1]} 2. Nf3 {[%clk 0:02:57.1]}
2... d6 {[%clk 0:02:59.1]} 3. d4 {[%clk 0:02:57.1]} 3... cxd4 {[%clk 0:02:59.5]}
4. Qxd4 {[%clk 0:02:58]} 4... Nc6 {[%clk 0:02:58.9]} 5. Bb5 {[%clk 0:02:56.9]}
5... Bd7 {[%clk 0:02:59.3]} 6. Bxc6 {[%clk 0:02:56.9]} 6... Bxc6 {[%clk
0:03:00.2]} 7. Nc3 {[%clk 0:02:56.5]} 7... Nf6 {[%clk 0:03:00.6]} 8. Bg5 {[%clk
0:02:56.2]} 8... e6 {[%clk 0:03:01]} 9. O-O-O {[%clk 0:02:54.7]} 9... Be7 {[%clk
0:03:01.4]} 10. Qd3 {[%clk 0:02:54.9]} 10... O-O {[%clk 0:03:00.7]} 11. Nd4
{[%clk 0:02:55]} 11... Rc8 {[%clk 0:02:54.6]} 12. f4 {[%clk 0:02:54.3]} 12... h6
{[%clk 0:02:53.4]} 13. h4 {[%clk 0:02:51.3]} 13... Qa5 {[%clk 0:02:28.2]} 14. g4
{[%clk 0:02:34.9]} 14... Rfd8 {[%clk 0:02:19.7]} 15. Bxf6 {[%clk 0:02:31]} 15...
Bxf6 {[%clk 0:02:19.4]} 16. g5 {[%clk 0:02:31.6]} 16... Bxd4 {[%clk 0:02:17.3]}
17. Qxd4 {[%clk 0:02:28.4]} 17... e5 {[%clk 0:02:07.7]} 18. Qd3 {[%clk
0:01:32.1]} 18... h5 {[%clk 0:01:53.1]} 19. g6 {[%clk 0:01:30.8]} 19... fxg6
{[%clk 0:01:50.4]} 20. Rhg1 {[%clk 0:01:21.2]} 20... Be8 {[%clk 0:01:20.1]} 21.
Nd5 {[%clk 0:01:03.5]} 21... Qxa2 {[%clk 0:01:14]} 22. Ne7+ {[%clk 0:01:03.2]}
22... Kh7 {[%clk 0:01:13.9]} 23. Nxc8 {[%clk 0:01:03.3]} 23... Rxc8 {[%clk
0:01:14.1]} 24. f5 {[%clk 0:01:02.8]} 24... Qa1+ {[%clk 0:01:12]} 25. Kd2 {[%clk
0:01:02.5]} 25... Qxb2 {[%clk 0:01:12]} 26. fxg6+ {[%clk 0:01:00.8]} 26... Bxg6
{[%clk 0:01:09.6]} 27. Rb1 {[%clk 0:00:56.3]} 27... Qa2 {[%clk 0:01:04.8]} 28.
Rxb7 {[%clk 0:00:54.9]} 28... Qa5+ {[%clk 0:00:58.4]} 29. Ke2 {[%clk 0:00:46.6]}
29... Qc5 {[%clk 0:00:51.4]} 30. Rxg6 {[%clk 0:00:41.2]} 30... Rc7 {[%clk
0:00:23]} 31. Rxc7 {[%clk 0:00:38.5]} 31... Qxc7 {[%clk 0:00:23.1]} 32. Rxd6
{[%clk 0:00:37.8]} 32... Qe7 {[%clk 0:00:22.5]} 33. Rd7 {[%clk 0:00:29.6]} 33...
Qxh4 {[%clk 0:00:22.3]} 34. Qf3 {[%clk 0:00:27.2]} 34... Qh2+ {[%clk 0:00:19.3]}
35. Qf2 {[%clk 0:00:25.7]} 35... Qh1 {[%clk 0:00:15.5]} 36. Qf5+ {[%clk
0:00:25.1]} 36... Kh6 {[%clk 0:00:14.4]} 37. Rd6+ {[%clk 0:00:24.5]} 1-0